[Event "*** Titled Tuesday Blitz"]
[Site "Chess.com"]
[Date "2021.04.20"]
[Round "5"]
[White "enriquebutti"]
[Black "FeketeBarika"]
[Result "0-1"]
[WhiteElo "2051"]
[BlackElo "2258"]
[TimeControl "180+1"]
[EndTime "10:54:45 PDT"]
[Termination "FeketeBarika won on time"]

1. d4 {[%clk 0:03:00.8]} 1... Nf6 {[%clk 0:02:58.9]} 2. Nf3 {[%clk 0:02:59.7]}
2... e6 {[%clk 0:02:58.2]} 3. e3 {[%clk 0:02:58.7]} 3... d5 {[%clk 0:02:57.1]}
4. Bd3 {[%clk 0:02:54.7]} 4... c5 {[%clk 0:02:55.5]} 5. O-O {[%clk 0:02:52.3]}
5... Nc6 {[%clk 0:02:52.3]} 6. b3 {[%clk 0:02:49.2]} 6... Be7 {[%clk 0:02:51.9]}
7. Bb2 {[%clk 0:02:48.2]} 7... O-O {[%clk 0:02:50.7]} 8. c4 {[%clk 0:02:47.3]}
8... dxc4 {[%clk 0:02:46.3]} 9. bxc4 {[%clk 0:02:46.2]} 9... cxd4 {[%clk
0:02:47.2]} 10. exd4 {[%clk 0:02:44.1]} 10... Bd7 {[%clk 0:02:45.4]} 11. Nbd2
{[%clk 0:02:33.2]} 11... Rc8 {[%clk 0:02:44.3]} 12. Re1 {[%clk 0:02:31.4]} 12...
Nb4 {[%clk 0:02:39.1]} 13. Bb1 {[%clk 0:02:29.2]} 13... Bc6 {[%clk 0:02:38.1]}
14. a3 {[%clk 0:02:26.7]} 14... Na6 {[%clk 0:02:36.5]} 15. Ne5 {[%clk
0:02:24.5]} 15... b5 {[%clk 0:02:10.9]} 16. Nxc6 {[%clk 0:02:13.6]} 16... Rxc6
{[%clk 0:02:11.8]} 17. cxb5 {[%clk 0:02:12.3]} 17... Rb6 {[%clk 0:02:12.2]} 18.
a4 {[%clk 0:02:07.8]} 18... Nb4 {[%clk 0:02:09.7]} 19. Nc4 {[%clk 0:01:59.2]}
19... Rb8 {[%clk 0:02:06.3]} 20. Re3 {[%clk 0:01:57.2]} 20... Nbd5 {[%clk
0:02:05.2]} 21. Rh3 {[%clk 0:01:55.4]} 21... g6 {[%clk 0:02:04.1]} 22. Qd2
{[%clk 0:01:49]} 22... Qc7 {[%clk 0:02:02.9]} 23. Ne5 {[%clk 0:01:44.4]} 23...
Bd6 {[%clk 0:01:59.6]} 24. Qh6 {[%clk 0:01:34.5]} 24... Rfc8 {[%clk 0:01:54.4]}
25. Bd3 {[%clk 0:01:27.1]} 25... Bf8 {[%clk 0:01:52.9]} 26. Qg5 {[%clk
0:01:21.5]} 26... Bg7 {[%clk 0:01:50.4]} 27. Nc6 {[%clk 0:01:07.5]} 27... Rb6
{[%clk 0:01:39.8]} 28. Rf3 {[%clk 0:01:03.5]} 28... Rxc6 {[%clk 0:01:39]} 29.
bxc6 {[%clk 0:01:00.6]} 29... Qxc6 {[%clk 0:01:39.9]} 30. Rc1 {[%clk 0:00:59.1]}
30... Qb7 {[%clk 0:01:39.6]} 31. Rxc8+ {[%clk 0:00:56.8]} 31... Qxc8 {[%clk
0:01:40.5]} 32. Qc1 {[%clk 0:00:54.8]} 32... Qb7 {[%clk 0:01:39.6]} 33. Bb5
{[%clk 0:00:52.3]} 33... a6 {[%clk 0:01:39.8]} 34. Qc6 {[%clk 0:00:48.3]} 34...
Qe7 {[%clk 0:01:28.4]} 35. Qa8+ {[%clk 0:00:41.6]} 35... Bf8 {[%clk 0:01:25.8]}
36. Bxa6 {[%clk 0:00:36]} 36... Qb4 {[%clk 0:01:23.3]} 37. h3 {[%clk 0:00:25.1]}
37... Qxb2 {[%clk 0:01:21]} 38. Bc4 {[%clk 0:00:20.4]} 38... Qxd4 {[%clk
0:01:17.3]} 39. Bxd5 {[%clk 0:00:18]} 39... exd5 {[%clk 0:01:13.9]} 40. Re3
{[%clk 0:00:13.6]} 40... Kg7 {[%clk 0:01:13.5]} 41. a5 {[%clk 0:00:11.1]} 41...
Qd1+ {[%clk 0:01:12.9]} 42. Kh2 {[%clk 0:00:09.3]} 42... Bd6+ {[%clk 0:01:13.4]}
43. g3 {[%clk 0:00:08.6]} 43... Qd2 {[%clk 0:01:11.2]} 44. Rf3 {[%clk
0:00:07.9]} 44... Qe2 {[%clk 0:01:07.6]} 45. Kg2 {[%clk 0:00:07.1]} 45... Qe4
{[%clk 0:01:04.9]} 46. a6 {[%clk 0:00:04.9]} 46... Nd7 {[%clk 0:00:59.2]} 0-1

[Event "*** Titled Tuesday Blitz"]
[Site "Chess.com"]
[Date "2021.04.20"]
[Round "5"]
[White "KuzubovYuriy"]
[Black "Korchmar_Vasiliy"]
[Result "1-0"]
[WhiteElo "2862"]
[BlackElo "2643"]
[TimeControl "180+1"]
[EndTime "10:54:47 PDT"]
[Termination "KuzubovYuriy won on time"]

1. d4 {[%clk 0:03:00.9]} 1... Nf6 {[%clk 0:02:59.3]} 2. Nf3 {[%clk 0:03:01.4]}
2... d5 {[%clk 0:02:59.3]} 3. c4 {[%clk 0:03:01.3]} 3... c6 {[%clk 0:02:59.6]}
4. Nc3 {[%clk 0:03:00]} 4... a6 {[%clk 0:02:59.2]} 5. Qc2 {[%clk 0:02:58.7]}
5... dxc4 {[%clk 0:02:53.3]} 6. a4 {[%clk 0:02:58.3]} 6... Bg4 {[%clk
0:02:31.1]} 7. e3 {[%clk 0:02:51.6]} 7... Bxf3 {[%clk 0:02:22.2]} 8. gxf3 {[%clk
0:02:52.5]} 8... Nbd7 {[%clk 0:02:14.4]} 9. Bxc4 {[%clk 0:02:51.3]} 9... b5
{[%clk 0:02:01]} 10. Be2 {[%clk 0:02:42.8]} 10... g6 {[%clk 0:01:48.9]} 11. Ne4
{[%clk 0:02:35]} 11... Rc8 {[%clk 0:01:35.7]} 12. Bd2 {[%clk 0:02:22.3]} 12...
Bg7 {[%clk 0:01:34.5]} 13. axb5 {[%clk 0:02:19.4]} 13... cxb5 {[%clk 0:01:32.1]}
14. Qb3 {[%clk 0:02:18.7]} 14... Nxe4 {[%clk 0:01:22.6]} 15. fxe4 {[%clk
0:02:18.3]} 15... Qb6 {[%clk 0:01:17.6]} 16. Bb4 {[%clk 0:02:10.1]} 16... e5
{[%clk 0:01:04.9]} 17. O-O {[%clk 0:01:56]} 17... exd4 {[%clk 0:00:37]} 18. exd4
{[%clk 0:01:56.9]} 18... Bxd4 {[%clk 0:00:33.8]} 19. Bg4 {[%clk 0:01:09.2]}
19... f5 {[%clk 0:00:20.7]} 20. exf5 {[%clk 0:01:06.4]} 20... Ne5 {[%clk
0:00:20.7]} 21. Rae1 {[%clk 0:00:58.6]} 21... gxf5 {[%clk 0:00:19.8]} 22. Rxe5+
{[%clk 0:00:39.8]} 22... Bxe5 {[%clk 0:00:19.4]} 23. Bh5+ {[%clk 0:00:34]} 23...
Kd8 {[%clk 0:00:16.2]} 24. Qf7 {[%clk 0:00:25.5]} 24... Rc2 {[%clk 0:00:07.6]}
25. Rd1+ {[%clk 0:00:13.8]} 25... Bd4 {[%clk 0:00:05.7]} 26. Be7+ {[%clk
0:00:12]} 26... Kc8 {[%clk 0:00:05.8]} 27. Qxf5+ {[%clk 0:00:11.9]} 27... Kb8
{[%clk 0:00:05.6]} 28. Qxc2 {[%clk 0:00:12]} 28... Rg8+ {[%clk 0:00:04.1]} 29.
Kf1 {[%clk 0:00:11.5]} 29... Qb7 {[%clk 0:00:04.6]} 30. Rxd4 {[%clk 0:00:09.3]}
30... Qh1+ {[%clk 0:00:03.9]} 31. Ke2 {[%clk 0:00:09.4]} 31... Qxh2 {[%clk
0:00:04]} 32. Qf5 {[%clk 0:00:09]} 1-0

[Event "*** Titled Tuesday Blitz"]
[Site "Chess.com"]
[Date "2021.04.20"]
[Round "5"]
[White "AnnaChessLook"]
[Black "SanchezKelvin"]
[Result "0-1"]
[WhiteElo "2251"]
[BlackElo "124"]
[TimeControl "180+1"]
[EndTime "10:54:47 PDT"]
[Termination "SanchezKelvin won by resignation"]

1. d4 {[%clk 0:03:00.9]} 1... d5 {[%clk 0:02:50]} 2. c4 {[%clk 0:02:53.4]} 2...
c6 {[%clk 0:02:48.8]} 3. Nf3 {[%clk 0:02:51.3]} 3... Nf6 {[%clk 0:02:47.9]} 4.
Nc3 {[%clk 0:02:51.1]} 4... e6 {[%clk 0:02:47.6]} 5. e3 {[%clk 0:02:49.2]} 5...
Nbd7 {[%clk 0:02:46.2]} 6. b3 {[%clk 0:02:46.7]} 6... Bb4 {[%clk 0:02:43]} 7.
Bd2 {[%clk 0:02:44.9]} 7... Qe7 {[%clk 0:02:42.3]} 8. Bd3 {[%clk 0:02:43.7]}
8... dxc4 {[%clk 0:02:36.7]} 9. bxc4 {[%clk 0:02:41.8]} 9... e5 {[%clk
0:02:36.2]} 10. dxe5 {[%clk 0:02:07.8]} 10... Nxe5 {[%clk 0:02:34]} 11. Nxe5
{[%clk 0:01:56.4]} 11... Qxe5 {[%clk 0:02:33.2]} 12. Qb3 {[%clk 0:01:56.8]}
12... Bd6 {[%clk 0:02:28.1]} 13. f4 {[%clk 0:01:46.7]} 13... Qh5 {[%clk
0:02:11.4]} 14. O-O {[%clk 0:01:35]} 14... O-O {[%clk 0:02:09.3]} 15. e4 {[%clk
0:01:18.8]} 15... Bc5+ {[%clk 0:02:05.6]} 16. Kh1 {[%clk 0:01:10.5]} 16... Ng4
{[%clk 0:01:54.3]} 17. h3 {[%clk 0:00:52.8]} 17... Nf2+ {[%clk 0:01:52]} 18.
Rxf2 {[%clk 0:00:52]} 18... Bxf2 {[%clk 0:01:48.5]} 19. Rf1 {[%clk 0:00:50.7]}
19... Bc5 {[%clk 0:01:43.8]} 20. f5 {[%clk 0:00:50.8]} 20... b6 {[%clk
0:01:27.6]} 21. e5 {[%clk 0:00:47.3]} 21... Bd4 {[%clk 0:01:21]} 22. Qa4 {[%clk
0:00:30.2]} 22... Bb7 {[%clk 0:01:06]} 23. c5 {[%clk 0:00:17.5]} 23... Bxe5
{[%clk 0:00:59.2]} 24. Be2 {[%clk 0:00:14.7]} 24... b5 {[%clk 0:00:49.1]} 25.
Qe4 {[%clk 0:00:13.2]} 25... Bxc3 {[%clk 0:00:41.1]} 26. Bxh5 {[%clk 0:00:13.3]}
26... Bxd2 {[%clk 0:00:41.4]} 27. f6 {[%clk 0:00:12]} 27... g6 {[%clk 0:00:33]}
28. Bf3 {[%clk 0:00:12]} 28... Rfe8 {[%clk 0:00:30.3]} 29. Qg4 {[%clk
0:00:11.2]} 29... Rad8 {[%clk 0:00:25.3]} 30. Rd1 {[%clk 0:00:11.2]} 30... Bc3
{[%clk 0:00:20.5]} 31. Rxd8 {[%clk 0:00:07.5]} 31... Rxd8 {[%clk 0:00:19.2]} 32.
Qf4 {[%clk 0:00:08]} 32... Bc8 {[%clk 0:00:14.7]} 33. Qc7 {[%clk 0:00:07.3]}
33... Re8 {[%clk 0:00:14.3]} 34. Bxc6 {[%clk 0:00:05.2]} 34... Re1+ {[%clk
0:00:14.1]} 35. Kh2 {[%clk 0:00:05]} 35... Be5+ {[%clk 0:00:14.2]} 36. Qxe5
{[%clk 0:00:05.4]} 36... Rxe5 {[%clk 0:00:14.9]} 0-1

[Event "*** Titled Tuesday Blitz"]
[Site "Chess.com"]
[Date "2021.04.20"]
[Round "5"]
[White "AlexSuv"]
[Black "Igor_Lysyj"]
[Result "0-1"]
[WhiteElo "2582"]
[BlackElo "2779"]
[TimeControl "180+1"]
[EndTime "10:54:48 PDT"]
[Termination "Igor_Lysyj won by resignation"]

1. d4 {[%clk 0:03:00.9]} 1... d5 {[%clk 0:02:57]} 2. c4 {[%clk 0:03:01.2]} 2...
e6 {[%clk 0:02:56.4]} 3. Nc3 {[%clk 0:03:01.8]} 3... dxc4 {[%clk 0:02:56.2]} 4.
Nf3 {[%clk 0:02:56.2]} 4... a6 {[%clk 0:02:55.3]} 5. a4 {[%clk 0:02:55.6]} 5...
Nc6 {[%clk 0:02:54.5]} 6. e4 {[%clk 0:02:43.4]} 6... Na5 {[%clk 0:02:53.5]} 7.
Be2 {[%clk 0:02:39.7]} 7... Bb4 {[%clk 0:02:52.3]} 8. O-O {[%clk 0:02:39.1]}
8... Nf6 {[%clk 0:02:50.6]} 9. Bg5 {[%clk 0:02:39]} 9... h6 {[%clk 0:02:50]} 10.
Bxf6 {[%clk 0:02:16.8]} 10... Qxf6 {[%clk 0:02:48.9]} 11. e5 {[%clk 0:02:15.2]}
11... Qe7 {[%clk 0:02:46.1]} 12. Nd2 {[%clk 0:01:58.5]} 12... O-O {[%clk
0:02:22.2]} 13. Nxc4 {[%clk 0:01:55.3]} 13... Rd8 {[%clk 0:02:20.8]} 14. Nxa5
{[%clk 0:01:47.3]} 14... Bxa5 {[%clk 0:02:20.2]} 15. Bf3 {[%clk 0:01:42.1]}
15... c5 {[%clk 0:02:03.3]} 16. d5 {[%clk 0:01:27.8]} 16... exd5 {[%clk
0:02:03.1]} 17. Nxd5 {[%clk 0:01:24.4]} 17... Qxe5 {[%clk 0:02:02.4]} 18. Qc2
{[%clk 0:01:14.1]} 18... Be6 {[%clk 0:01:48.1]} 19. Qxc5 {[%clk 0:01:13.6]}
19... Rxd5 {[%clk 0:01:45]} 20. Bxd5 {[%clk 0:01:08.1]} 20... Qxd5 {[%clk
0:01:44.8]} 21. Qxd5 {[%clk 0:01:06]} 21... Bxd5 {[%clk 0:01:44.3]} 22. Rfd1
{[%clk 0:01:06.9]} 22... Bc6 {[%clk 0:01:43.4]} 23. Rd3 {[%clk 0:01:06.5]} 23...
Bb4 {[%clk 0:01:42.8]} 24. Rad1 {[%clk 0:01:06.1]} 24... Kh7 {[%clk 0:01:35.3]}
25. b3 {[%clk 0:01:04.5]} 25... Re8 {[%clk 0:01:31.7]} 26. f3 {[%clk 0:01:02.7]}
26... a5 {[%clk 0:01:30.2]} 27. h4 {[%clk 0:01:01.3]} 27... h5 {[%clk
0:01:22.3]} 28. Kh2 {[%clk 0:01:01]} 28... Re2 {[%clk 0:01:21.1]} 29. Kg3 {[%clk
0:01:00.3]} 29... Bc5 {[%clk 0:01:17.6]} 30. Rc1 {[%clk 0:00:58.1]} 30... Bf2+
{[%clk 0:01:13.8]} 31. Kh3 {[%clk 0:00:58.3]} 31... Rb2 {[%clk 0:01:11.4]} 32.
Rc4 {[%clk 0:00:55.3]} 32... g6 {[%clk 0:01:07.7]} 33. Rf4 {[%clk 0:00:53.2]}
33... Kg7 {[%clk 0:01:07.5]} 34. Rc4 {[%clk 0:00:52.8]} 34... Rb1 {[%clk
0:01:05.5]} 35. Kh2 {[%clk 0:00:52.5]} 35... Be1 {[%clk 0:01:00.8]} 36. Rcd4
{[%clk 0:00:45.2]} 36... Bb4 {[%clk 0:00:59.9]} 37. Rc4 {[%clk 0:00:42.1]} 37...
Re1 {[%clk 0:00:56]} 38. Rcd4 {[%clk 0:00:38.5]} 38... Re5 {[%clk 0:00:51.4]}
39. Rf4 {[%clk 0:00:35]} 39... b5 {[%clk 0:00:49]} 40. axb5 {[%clk 0:00:29]}
40... Bxb5 {[%clk 0:00:48.9]} 41. Rdd4 {[%clk 0:00:29.6]} 41... Re2 {[%clk
0:00:46.2]} 42. Rfe4 {[%clk 0:00:21.9]} 42... Rb2 {[%clk 0:00:42.6]} 43. Re5
{[%clk 0:00:18.1]} 43... Bf1 {[%clk 0:00:36.3]} 44. Rd7 {[%clk 0:00:13.5]} 44...
Rxg2+ {[%clk 0:00:34.6]} 45. Kh1 {[%clk 0:00:13.1]} 45... Rf2 {[%clk 0:00:30.5]}
46. Re4 {[%clk 0:00:13.6]} 46... Rxf3 {[%clk 0:00:28.7]} 0-1

[Event "*** Titled Tuesday Blitz"]
[Site "Chess.com"]
[Date "2021.04.20"]
[Round "5"]
[White "Rsnr"]
[Black "Beca95"]
[Result "0-1"]
[WhiteElo "2779"]
[BlackElo "2847"]
[TimeControl "180+1"]
[EndTime "10:54:49 PDT"]
[Termination "Beca95 won by resignation"]

1. d4 {[%clk 0:03:00.4]} 1... Nf6 {[%clk 0:02:59.1]} 2. c4 {[%clk 0:03:00.5]}
2... c5 {[%clk 0:02:59.5]} 3. d5 {[%clk 0:03:00.4]} 3... e6 {[%clk 0:02:59.9]}
4. Nc3 {[%clk 0:02:57.4]} 4... exd5 {[%clk 0:02:59.1]} 5. cxd5 {[%clk
0:02:58.3]} 5... d6 {[%clk 0:02:59.3]} 6. Nf3 {[%clk 0:02:53.7]} 6... g6 {[%clk
0:02:59.2]} 7. Bf4 {[%clk 0:02:54.1]} 7... a6 {[%clk 0:02:57.9]} 8. e4 {[%clk
0:02:54]} 8... Bg4 {[%clk 0:02:56.4]} 9. h3 {[%clk 0:02:33.3]} 9... Bxf3 {[%clk
0:02:55.7]} 10. Qxf3 {[%clk 0:02:34.2]} 10... Nbd7 {[%clk 0:02:55.5]} 11. a4
{[%clk 0:02:33.9]} 11... Qe7 {[%clk 0:02:54.8]} 12. Be2 {[%clk 0:02:32.8]} 12...
Bg7 {[%clk 0:02:38.6]} 13. O-O {[%clk 0:02:32.7]} 13... O-O {[%clk 0:02:37.5]}
14. Qg3 {[%clk 0:02:17.4]} 14... Ne8 {[%clk 0:02:23.2]} 15. Rae1 {[%clk
0:02:16.3]} 15... h6 {[%clk 0:02:06.3]} 16. Qe3 {[%clk 0:02:12.1]} 16... Kh7
{[%clk 0:02:05]} 17. Bh2 {[%clk 0:02:08.6]} 17... Nc7 {[%clk 0:02:03.7]} 18. Kh1
{[%clk 0:02:04.7]} 18... Rab8 {[%clk 0:02:02.7]} 19. f4 {[%clk 0:01:58.3]} 19...
b5 {[%clk 0:01:56.4]} 20. axb5 {[%clk 0:01:59.2]} 20... axb5 {[%clk 0:01:56.8]}
21. Bg4 {[%clk 0:01:47.1]} 21... b4 {[%clk 0:01:54]} 22. Nd1 {[%clk 0:01:47.5]}
22... Rfe8 {[%clk 0:01:42.3]} 23. Qd3 {[%clk 0:01:45.6]} 23... Nb6 {[%clk
0:01:39]} 24. b3 {[%clk 0:01:39.3]} 24... Ncxd5 {[%clk 0:01:26.1]} 25. Nf2
{[%clk 0:00:53.3]} 25... Nc3 {[%clk 0:01:16.7]} 26. Bf3 {[%clk 0:00:53.3]} 26...
d5 {[%clk 0:01:09]} 27. e5 {[%clk 0:00:53.5]} 27... c4 {[%clk 0:01:09.1]} 28.
Qc2 {[%clk 0:00:53.6]} 28... Ra8 {[%clk 0:00:59.1]} 29. f5 {[%clk 0:00:53.5]}
29... Ra2 {[%clk 0:00:56.7]} 30. fxg6+ {[%clk 0:00:53.9]} 30... fxg6 {[%clk
0:00:55.4]} 31. Qc1 {[%clk 0:00:51]} 31... cxb3 {[%clk 0:00:54.6]} 32. Nd3
{[%clk 0:00:51.4]} 32... Nc4 {[%clk 0:00:53.1]} 33. e6 {[%clk 0:00:44.3]} 33...
Rc2 {[%clk 0:00:50.6]} 34. Qf4 {[%clk 0:00:43.3]} 34... b2 {[%clk 0:00:31.7]}
35. Qg4 {[%clk 0:00:40.8]} 35... h5 {[%clk 0:00:30.4]} 36. Qg3 {[%clk
0:00:41.1]} 36... b1=Q {[%clk 0:00:27.8]} 37. Rxb1 {[%clk 0:00:40.8]} 37... Nxb1
{[%clk 0:00:28.1]} 38. Rxb1 {[%clk 0:00:41.7]} 38... Nd2 {[%clk 0:00:28.2]} 39.
Nf4 {[%clk 0:00:29.5]} 39... Qf6 {[%clk 0:00:20.7]} 40. Bxh5 {[%clk 0:00:24.6]}
40... gxh5 {[%clk 0:00:19.6]} 41. Qd3+ {[%clk 0:00:24.8]} 41... Ne4 {[%clk
0:00:18.1]} 42. Qxc2 {[%clk 0:00:24.3]} 42... Qf5 {[%clk 0:00:18.6]} 43. Qd3
{[%clk 0:00:19.5]} 43... Nf2+ {[%clk 0:00:14.4]} 0-1

[Event "*** Titled Tuesday Blitz"]
[Site "Chess.com"]
[Date "2021.04.20"]
[Round "5"]
[White "KeithArkell"]
[Black "KubaGepard"]
[Result "1-0"]
[WhiteElo "2597"]
[BlackElo "2406"]
[TimeControl "180+1"]
[EndTime "10:54:49 PDT"]
[Termination "KeithArkell won by resignation"]

1. d4 {[%clk 0:03:00.9]} 1... d5 {[%clk 0:02:59.3]} 2. Nf3 {[%clk 0:02:59.6]}
2... Nf6 {[%clk 0:02:58.7]} 3. c4 {[%clk 0:02:59.9]} 3... dxc4 {[%clk
0:02:59.6]} 4. e3 {[%clk 0:02:59.6]} 4... e6 {[%clk 0:02:59.6]} 5. Bxc4 {[%clk
0:02:59.7]} 5... c5 {[%clk 0:03:00.1]} 6. Nc3 {[%clk 0:02:59.6]} 6... Nc6 {[%clk
0:03:00]} 7. d5 {[%clk 0:02:59.7]} 7... exd5 {[%clk 0:02:58.8]} 8. Nxd5 {[%clk
0:02:59.8]} 8... Nxd5 {[%clk 0:02:59]} 9. Qxd5 {[%clk 0:02:59.8]} 9... Qxd5
{[%clk 0:02:58.5]} 10. Bxd5 {[%clk 0:02:59.6]} 10... Nb4 {[%clk 0:02:52.4]} 11.
Bb3 {[%clk 0:02:59.5]} 11... c4 {[%clk 0:02:46.6]} 12. Ba4+ {[%clk 0:02:58.8]}
12... Bd7 {[%clk 0:02:37.5]} 13. Bxd7+ {[%clk 0:02:58.2]} 13... Kxd7 {[%clk
0:02:36.5]} 14. Ke2 {[%clk 0:02:58.5]} 14... f6 {[%clk 0:02:32.4]} 15. Bd2
{[%clk 0:02:57.1]} 15... Nc6 {[%clk 0:02:30.2]} 16. a4 {[%clk 0:02:56.4]} 16...
a6 {[%clk 0:02:00.5]} 17. a5 {[%clk 0:02:55.7]} 17... Bb4 {[%clk 0:01:41.6]} 18.
Rhc1 {[%clk 0:02:54.7]} 18... Rac8 {[%clk 0:01:29.7]} 19. Rxc4 {[%clk 0:02:52]}
19... Bxd2 {[%clk 0:01:29.4]} 20. Nxd2 {[%clk 0:02:50.6]} 20... Ne5 {[%clk
0:01:28.2]} 21. Rb4 {[%clk 0:02:46.1]} 21... Rc7 {[%clk 0:01:24]} 22. f4 {[%clk
0:02:35.4]} 22... Nc6 {[%clk 0:01:23.1]} 23. Rc4 {[%clk 0:02:29.6]} 23... Rhc8
{[%clk 0:01:22.1]} 24. Nb3 {[%clk 0:02:29.3]} 24... Ne7 {[%clk 0:01:18.6]} 25.
Rxc7+ {[%clk 0:02:27.9]} 25... Rxc7 {[%clk 0:01:17.3]} 26. Rd1+ {[%clk
0:02:25.4]} 26... Ke6 {[%clk 0:01:16.2]} 27. Nd4+ {[%clk 0:02:25.3]} 27... Kf7
{[%clk 0:01:15.4]} 28. Kd3 {[%clk 0:02:19.6]} 28... Nc6 {[%clk 0:01:13.6]} 29.
Nxc6 {[%clk 0:02:17.1]} 29... Rxc6 {[%clk 0:01:12.2]} 30. b4 {[%clk 0:02:17.2]}
30... Ke6 {[%clk 0:01:10.3]} 31. e4 {[%clk 0:02:16.8]} 31... b5 {[%clk 0:01:02]}
32. axb6 {[%clk 0:02:12.1]} 32... Rxb6 {[%clk 0:01:01.6]} 33. Ra1 {[%clk
0:02:11]} 33... g5 {[%clk 0:00:58.5]} 34. g3 {[%clk 0:02:10]} 34... f5 {[%clk
0:00:52]} 35. exf5+ {[%clk 0:02:07.1]} 35... Kf6 {[%clk 0:00:45]} 36. fxg5+
{[%clk 0:02:06.6]} 36... Kxg5 {[%clk 0:00:44.8]} 37. Kc4 {[%clk 0:01:40.2]}
37... Kxf5 {[%clk 0:00:42.4]} 38. Rf1+ {[%clk 0:01:38.7]} 38... Ke5 {[%clk
0:00:36.4]} 39. Rf4 {[%clk 0:01:36.9]} 39... Rc6+ {[%clk 0:00:36.1]} 40. Kb3
{[%clk 0:01:37]} 40... h6 {[%clk 0:00:34.7]} 41. Rh4 {[%clk 0:01:36.3]} 41...
Kf5 {[%clk 0:00:30.9]} 42. Ka4 {[%clk 0:01:36.4]} 42... Kg5 {[%clk 0:00:28.4]}
43. Ka5 {[%clk 0:01:36.6]} 43... Re6 {[%clk 0:00:25.6]} 44. Rc4 {[%clk
0:01:35.1]} 44... h5 {[%clk 0:00:23]} 45. h4+ {[%clk 0:01:26.1]} 45... Kf5
{[%clk 0:00:19]} 46. Rc5+ {[%clk 0:01:22.7]} 46... Kg4 {[%clk 0:00:19]} 47. Rg5+
{[%clk 0:01:22.6]} 47... Kf3 {[%clk 0:00:19.6]} 48. Rxh5 {[%clk 0:01:18.5]}
48... Kxg3 {[%clk 0:00:19.9]} 49. Rh8 {[%clk 0:01:18.5]} 49... Kg4 {[%clk
0:00:20.1]} 50. h5 {[%clk 0:01:11.2]} 50... Kg5 {[%clk 0:00:20.3]} 51. h6 {[%clk
0:01:11.5]} 51... Kg6 {[%clk 0:00:20.6]} 52. Ra8 {[%clk 0:01:10.1]} 52... Re5+
{[%clk 0:00:19.6]} 53. Kxa6 {[%clk 0:01:10.2]} 53... Kxh6 {[%clk 0:00:20.1]} 54.
Rg8 {[%clk 0:01:09.3]} 54... Kh7 {[%clk 0:00:20]} 55. Rg1 {[%clk 0:01:08]} 55...
Re2 {[%clk 0:00:18.4]} 56. b5 {[%clk 0:01:07.5]} 56... Ra2+ {[%clk 0:00:18.5]}
57. Kb7 {[%clk 0:01:07.9]} 57... Rf2 {[%clk 0:00:18]} 58. b6 {[%clk 0:01:08]}
58... Rf7+ {[%clk 0:00:18.6]} 59. Ka6 {[%clk 0:01:08]} 59... Rf2 {[%clk
0:00:18.3]} 60. Rb1 {[%clk 0:01:00.2]} 60... Ra2+ {[%clk 0:00:17.6]} 61. Kb5
{[%clk 0:00:59.7]} 61... Rf2 {[%clk 0:00:18.5]} 62. b7 {[%clk 0:00:59.1]} 62...
Rf8 {[%clk 0:00:18.2]} 1-0

[Event "*** Titled Tuesday Blitz"]
[Site "Chess.com"]
[Date "2021.04.20"]
[Round "5"]
[White "ljuks68"]
[Black "Shahaliyev"]
[Result "1-0"]
[WhiteElo "2461"]
[BlackElo "2668"]
[TimeControl "180+1"]
[EndTime "10:54:50 PDT"]
[Termination "ljuks68 won on time"]

1. e4 {[%clk 0:02:56.1]} 1... d6 {[%clk 0:03:00.2]} 2. d4 {[%clk 0:02:55.5]}
2... Nf6 {[%clk 0:03:01.1]} 3. Nc3 {[%clk 0:02:55.5]} 3... e5 {[%clk 0:03:01.7]}
4. dxe5 {[%clk 0:02:55.1]} 4... dxe5 {[%clk 0:03:02.6]} 5. Qxd8+ {[%clk
0:02:55.2]} 5... Kxd8 {[%clk 0:03:03.5]} 6. f4 {[%clk 0:02:55.5]} 6... Bb4
{[%clk 0:03:02.4]} 7. Bd3 {[%clk 0:02:55.4]} 7... Re8 {[%clk 0:02:57]} 8. fxe5
{[%clk 0:02:55.2]} 8... Nxe4 {[%clk 0:02:56.1]} 9. Nf3 {[%clk 0:02:37.5]} 9...
Nxc3 {[%clk 0:02:47.5]} 10. a3 {[%clk 0:02:35.6]} 10... Ba5 {[%clk 0:02:23.9]}
11. Bd2 {[%clk 0:02:34.8]} 11... Nc6 {[%clk 0:02:20.9]} 12. bxc3 {[%clk
0:02:29.3]} 12... Nxe5 {[%clk 0:02:20.4]} 13. O-O {[%clk 0:02:29]} 13... Nxd3
{[%clk 0:02:11.4]} 14. cxd3 {[%clk 0:02:28.5]} 14... f6 {[%clk 0:02:12.3]} 15.
Nd4 {[%clk 0:02:13.1]} 15... Bb6 {[%clk 0:02:06]} 16. Kh1 {[%clk 0:02:10.1]}
16... Bxd4 {[%clk 0:01:58.2]} 17. cxd4 {[%clk 0:02:10.1]} 17... Be6 {[%clk
0:01:53.7]} 18. Rfe1 {[%clk 0:01:51.7]} 18... Kd7 {[%clk 0:01:52]} 19. Kg1
{[%clk 0:01:50.9]} 19... Bf5 {[%clk 0:01:51.4]} 20. Rxe8 {[%clk 0:01:47.5]}
20... Rxe8 {[%clk 0:01:52.3]} 21. Re1 {[%clk 0:01:47.5]} 21... Rxe1+ {[%clk
0:01:29.6]} 22. Bxe1 {[%clk 0:01:46.6]} 22... Bxd3 {[%clk 0:01:30.5]} 23. Kf2
{[%clk 0:01:46.9]} 23... Kc6 {[%clk 0:01:28.8]} 24. Ke3 {[%clk 0:01:46.7]} 24...
Bf1 {[%clk 0:01:28.1]} 25. g3 {[%clk 0:01:46.4]} 25... Kd5 {[%clk 0:01:28.3]}
26. Bb4 {[%clk 0:01:46.4]} 26... Kc4 {[%clk 0:01:22.3]} 27. Bf8 {[%clk
0:01:45.6]} 27... Kb3 {[%clk 0:01:18]} 28. Kd2 {[%clk 0:01:40.5]} 28... f5
{[%clk 0:01:09.3]} 29. Ke3 {[%clk 0:01:30.9]} 29... Bh3 {[%clk 0:01:01.3]} 30.
Kf4 {[%clk 0:01:26.8]} 30... a5 {[%clk 0:00:55.1]} 31. Ke3 {[%clk 0:01:19.9]}
31... Kc4 {[%clk 0:00:53.9]} 32. Bxg7 {[%clk 0:01:18.1]} 32... b5 {[%clk
0:00:54.1]} 33. Kd2 {[%clk 0:01:15.2]} 33... h5 {[%clk 0:00:28.9]} 34. Bf6
{[%clk 0:01:13.6]} 34... b4 {[%clk 0:00:27.6]} 35. axb4 {[%clk 0:01:12.3]} 35...
axb4 {[%clk 0:00:27.8]} 36. Kc2 {[%clk 0:01:09.6]} 36... c6 {[%clk 0:00:25.3]}
37. Be5 {[%clk 0:00:57.3]} 37... Kd5 {[%clk 0:00:24.3]} 38. Bf6 {[%clk
0:00:46.7]} 38... Kc4 {[%clk 0:00:10.8]} 39. Be5 {[%clk 0:00:42.9]} 39... Kd5
{[%clk 0:00:06.2]} 40. Bf6 {[%clk 0:00:39.1]} 40... Ke4 {[%clk 0:00:06.6]} 41.
Kb3 {[%clk 0:00:37]} 41... Kf3 {[%clk 0:00:07]} 42. Kxb4 {[%clk 0:00:36.3]}
42... Kg2 {[%clk 0:00:03.8]} 43. Be5 {[%clk 0:00:36.2]} 1-0